fUSD/lending_fUSD_20250216
["ID","MTS","AMOUNT","RATE_DAILY","PERIOD"]
[353228688,1739685032777,-511.56317707,0.00010958,2]
[353228689,1739685032786,-302.97129166,0.00010958,2]
[353228690,1739685032795,-498.85706264,0.00010958,2]
[353228691,1739685032804,-501.34759318,0.00010958,2]
[353228692,1739685032813,-724.49712,0.00010958,2]
[353228693,1739685032821,-965.878874,0.00010958,2]
[353228694,1739685032830,-507.07643136,0.00010958,2]
[353228695,1739685032839,-158.486776,0.00010958,2]
[353228697,1739685032848,-500.0,0.00010958,2]
[353228699,1739685032858,-506.35951133,0.00010958,2]
[353228701,1739685032867,-500.0,0.00010958,2]
[353228703,1739685032877,-500.0,0.00010958,2]
[353228705,1739685032886,-160.918415,0.00010958,2]
[353228707,1739685032895,-506.17867369,0.00010958,2]
[353228709,1739685032904,-150.753848,0.00010958,2]
[353228711,1739685032913,-500.0,0.00010958,2]
[353228712,1739685032923,-505.62007066,0.00010958,2]
[353228713,1739685032932,-511.6822267,0.00010958,2]
[353228714,1739685032941,-500.0,0.00010958,2]
[353228715,1739685032950,-482.33587484,0.00010958,2]
[353228716,1739685032959,-500.0,0.00010958,2]
[353228717,1739685032968,-516.84801072,0.00010958,2]
[353228718,1739685032977,-500.0,0.00010958,2]
[353228719,1739685032986,-508.37762394,0.00010958,2]
[353228720,1739685032995,-500.0,0.00010958,2]
[353228721,1739685033005,-500.0,0.00010958,2]
[353228722,1739685033016,-500.0,0.00010958,2]
[353228723,1739685033028,-506.43122235,0.00010958,2]
[353228724,1739685033037,-500.0,0.00010958,2]
[353228725,1739685033047,-537.29962814,0.00010958,2]
[353228726,1739685033056,-494.77750043,0.00010958,2]
[353228727,1739685033066,-500.0,0.00010958,2]
[353228728,1739685033075,-500.0,0.00010958,2]
[353228729,1739685033084,-500.0,0.00010958,2]
[353228730,1739685033093,-500.0,0.00010958,2]
[353228731,1739685033103,-500.0,0.00010958,2]
[353228732,1739685033112,-500.0,0.00010958,2]
[353228733,1739685033121,-500.0,0.00010958,2]
[353228734,1739685033131,-225.7899902,0.00010958,2]
[353228735,1739685033142,-500.0,0.00010958,2]
[353228736,1739685033151,-500.0,0.00010958,2]
[353228737,1739685033162,-500.0,0.00010958,2]
[353228738,1739685033171,-508.23736735,0.00010958,2]
[353228739,1739685033181,-505.8133427,0.00010958,2]
[353228740,1739685033190,-506.06944719,0.00010958,2]
[353228741,1739685033199,-500.0,0.00010958,2]
[353228742,1739685033209,-1284.185,0.00010958,2]
[353228743,1739685033219,-508.27323387,0.00010958,2]
[353228744,1739685033228,-510.35570992,0.00010958,2]
[353228745,1739685033239,-509.8162948,0.00010958,2]
[353228746,1739685033249,-506.34881721,0.00010958,2]
[353228747,1739685033259,-500.0,0.00010958,2]
[353228748,1739685033268,-511.58256171,0.00010958,2]
[353228749,1739685033278,-500.0,0.00010958,2]
[353228750,1739685033287,-500.0,0.00010958,2]
[353228751,1739685033296,-500.0,0.00010958,2]
[353228752,1739685033306,-511.165514,0.00010958,2]
[353228753,1739685033315,-500.0,0.00010958,2]
[353228754,1739685033324,-500.0,0.00010958,2]
[353228755,1739685033333,-508.40419341,0.00010958,2]
[353228756,1739685033343,-177.26976445,0.00010958,2]
[353228757,1739685033352,-500.0,0.00010958,2]
[353228758,1739685033362,-500.0,0.00010958,2]
[353228759,1739685033371,-507.59474095,0.00010958,2]
[353228760,1739685033380,-500.0,0.00010958,2]
[353228761,1739685033391,-500.0,0.00010958,2]
[353228762,1739685033401,-500.0,0.00010958,2]
[353228763,1739685033413,-501.90851256,0.00010958,2]
[353228764,1739685033422,-506.2186114,0.00010958,2]
[353228765,1739685033433,-511.68838053,0.00010958,2]
[353228766,1739685033443,-509.14393342,0.00010958,2]
[353228767,1739685033452,-509.56960892,0.00010958,2]
[353228768,1739685033462,-504.27827661,0.00010958,2]
[353228769,1739685033471,-502.19819748,0.00010958,2]
[353228770,1739685033480,-500.0,0.00010958,2]
[353228771,1739685033489,-500.0,0.00010958,2]
[353228772,1739685033498,-508.58415133,0.00010958,2]
[353228773,1739685033508,-510.92639571,0.00010958,2]
[353228774,1739685033517,-515.46193497,0.00010958,2]
[353228775,1739685033526,-500.0,0.00010958,2]
[353228776,1739685033535,-500.0,0.00010958,2]
[353228777,1739685033545,-515.03454958,0.00010958,2]
[353228778,1739685033554,-508.30958437,0.00010958,2]
[353228779,1739685033563,-505.03299071,0.00010958,2]
[353228780,1739685033573,-514.60520019,0.00010958,2]
[353228781,1739685033583,-511.10076896,0.00010958,2]
[353228782,1739685033592,-511.38532478,0.00010958,2]
[353228783,1739685033601,-507.43626139,0.00010958,2]
[353228784,1739685033611,-525.56454462,0.00010958,2]
[353228785,1739685033621,-510.25025142,0.00010958,2]
[353228786,1739685033630,-507.55917501,0.00010958,2]
[353228787,1739685033639,-509.69150615,0.00010958,2]
[353228788,1739685033648,-500.0,0.00010958,2]
[353228789,1739685033657,-504.44628244,0.00010958,2]
[353228790,1739685033667,-500.0,0.00010958,2]
[353228791,1739685033676,-500.0,0.00010958,2]
[353228792,1739685033685,-500.0,0.00010958,2]
[353228793,1739685033694,-503.87125075,0.00010958,2]
[353228794,1739685033704,-512.40281059,0.00010958,2]
[353228795,1739685033715,-509.15257684,0.00010958,2]
[353228796,1739685033724,-500.0,0.00010958,2]
[353228797,1739685033733,-556.86528648,0.00010958,2]
[353228798,1739685033742,-584.04,0.00010958,2]
[353228799,1739685033752,-504.52894376,0.00010958,2]
[353228800,1739685033761,-502.8538074,0.00010958,2]
[353228801,1739685033771,-606.2555291,0.00010958,2]
[353228802,1739685033780,-500.0,0.00010958,2]
[353228803,1739685033789,-649.36,0.00010958,2]
[353228804,1739685033798,-513.62252192,0.00010958,2]
[353228805,1739685033808,-500.0,0.00010958,2]
[353228806,1739685033817,-254.83834521,0.00010958,2]
[353228807,1739685033826,-507.8566247,0.00010958,2]
[353228808,1739685033835,-502.21698642,0.00010958,2]
[353228809,1739685033845,-500.0,0.00010958,2]
[353228810,1739685033854,-508.3097075,0.00010958,2]
[353228811,1739685033863,-500.0,0.00010958,2]
[353228812,1739685033872,-500.0,0.00010958,2]
[353228813,1739685033882,-506.63149517,0.00010958,2]
[353228814,1739685033891,-500.0,0.00010958,2]
[353228815,1739685033899,-505.56594368,0.00010958,2]
[353228816,1739685033908,-500.0,0.00010958,2]
[353228817,1739685033917,-500.0,0.00010958,2]
[353228818,1739685033927,-500.0,0.00010958,2]
[353228819,1739685033936,-500.0,0.00010958,2]
[353228820,1739685033945,-500.0,0.00010958,2]
[353228821,1739685033954,-500.0,0.00010958,2]
[353228822,1739685033963,-500.0,0.00010958,2]
[353228823,1739685033972,-501.98912237,0.00010958,2]
[353228824,1739685033981,-460.23862399,0.00010958,2]
[353228825,1739685033990,-500.0,0.00010958,2]
[353228826,1739685034000,-597.75,0.00010958,2]
[353228827,1739685034009,-501.93001949,0.00010958,2]
[353228828,1739685034018,-500.0,0.00010958,2]
[353228829,1739685034027,-500.0,0.00010958,2]
[353228830,1739685034036,-1792.48,0.00010958,2]
[353228831,1739685034046,-500.0,0.00010958,2]
[353228832,1739685034055,-500.0,0.00010958,2]
[353228833,1739685034064,-500.0,0.00010958,2]
[353228834,1739685034073,-500.0,0.00010958,2]
[353228835,1739685034082,-500.0,0.00010958,2]
[353228836,1739685034091,-506.90449907,0.00010958,2]
[353228837,1739685034101,-500.0,0.00010958,2]
[353228838,1739685034110,-505.50325992,0.00010958,2]
[353228839,1739685034119,-858.87,0.00010958,2]
[353228840,1739685034128,-528.75453419,0.00010958,2]
[353228841,1739685034138,-576.87,0.00010958,2]
[353228842,1739685034147,-597.25,0.00010958,2]
[353228843,1739685034156,-500.0,0.00010958,2]
[353228844,1739685034166,-500.0,0.00010958,2]
[353228845,1739685034175,-507.40344599,0.00010958,2]
[353228846,1739685034184,-504.83279506,0.00010958,2]
[353228847,1739685034194,-500.0,0.00010958,2]
[353228848,1739685034203,-500.78718516,0.00010958,2]
[353228849,1739685034212,-500.0,0.00010958,2]
[353228850,1739685034221,-500.0,0.00010958,2]
[353228851,1739685034231,-500.0,0.00010958,2]
[353228852,1739685034240,-500.0,0.00010958,2]
[353228853,1739685034249,-500.0,0.00010958,2]
[353228854,1739685034259,-500.0,0.00010958,2]
[353228855,1739685034269,-504.92167196,0.00010958,2]
[353228856,1739685034279,-506.56304896,0.00010958,2]
[353228857,1739685034288,-500.0,0.00010958,2]
[353228858,1739685034298,-328.11996719,0.00010958,2]
[353228859,1739685034308,-926.37,0.00010958,2]
[353228860,1739685034317,-505.3608854,0.00010958,2]
[353228861,1739685034327,-500.0,0.00010958,2]
[353228862,1739685034336,-504.6358972,0.00010958,2]
[353228863,1739685034346,-500.0,0.00010958,2]
[353228864,1739685034355,-500.0,0.00010958,2]
[353228865,1739685034365,-621.87,0.00010958,2]
[353228866,1739685034375,-500.0,0.00010958,2]
[353228867,1739685034384,-500.0,0.00010958,2]
[353228868,1739685034394,-500.0,0.00010958,2]
[353228869,1739685034405,-500.0,0.00010958,2]
[353228870,1739685034418,-500.0,0.00010958,2]
[353228871,1739685034428,-573.50584402,0.00010958,2]
[353228872,1739685034437,-500.0,0.00010958,2]
[353228873,1739685034447,-500.0,0.00010958,2]
[353228874,1739685034456,-500.0,0.00010958,2]
[353228875,1739685034466,-505.64117898,0.00010958,2]
[353228876,1739685034476,-500.0,0.00010958,2]
[353228877,1739685034487,-500.0,0.00010958,2]
[353228878,1739685034496,-500.0,0.00010958,2]
[353228879,1739685034506,-807.87,0.00010958,2]
[353228880,1739685034515,-507.60787236,0.00010958,2]
[353228881,1739685034524,-504.5098733,0.00010958,2]
[353228882,1739685034535,-516.7,0.00010958,2]
[353228883,1739685034544,-500.0,0.00010958,2]
[353228884,1739685034555,-504.93606901,0.00010958,2]
[353228885,1739685034565,-500.0,0.00010958,2]
[353228886,1739685034575,-500.0,0.00010958,2]
[353228887,1739685034585,-500.0,0.00010958,2]
[353228888,1739685034595,-500.0,0.00010958,2]
[353228889,1739685034605,-500.0,0.00010958,2]
[353228890,1739685034614,-500.0,0.00010958,2]
[353228891,1739685034623,-500.69,0.00010958,2]
[353228892,1739685034633,-500.0,0.00010958,2]
[353228893,1739685034642,-500.0,0.00010958,2]
[353228894,1739685034651,-500.0,0.00010958,2]
[353228895,1739685034661,-500.0,0.00010958,2]
[353228896,1739685034671,-500.0,0.00010958,2]
[353228897,1739685034680,-500.0,0.00010958,2]
[353228898,1739685034690,-506.25342775,0.00010958,2]
[353228899,1739685034699,-500.0,0.00010958,2]
[353228900,1739685034709,-500.0,0.00010958,2]
[353228901,1739685034718,-500.0,0.00010958,2]
[353228902,1739685034728,-500.0,0.00010958,2]
[353228903,1739685034737,-500.0,0.00010958,2]
[353228904,1739685034748,-1996.16,0.00010958,2]
[353228905,1739685034757,-500.0,0.00010958,2]
[353228906,1739685034767,-500.0,0.00010958,2]
[353228907,1739685034776,-514.43382872,0.00010958,2]
[353228908,1739685034786,-500.0,0.00010958,2]
[353228909,1739685034796,-680.75,0.00010958,2]
[353228910,1739685034805,-513.57350975,0.00010958,2]
[353228911,1739685034814,-500.0,0.00010958,2]
[353228912,1739685034823,-500.0,0.00010958,2]
[353228913,1739685034833,-500.0,0.00010958,2]
[353228914,1739685034843,-500.0,0.00010958,2]
[353228915,1739685034851,-500.0,0.00010958,2]
[353228916,1739685034861,-500.0,0.00010958,2]
[353228917,1739685034873,-500.0,0.00010958,2]
[353228918,1739685034882,-500.0,0.00010958,2]
[353228919,1739685034892,-640.33,0.00010958,2]
[353228920,1739685034902,-500.0,0.00010958,2]
[353228921,1739685034911,-500.0,0.00010958,2]
[353228922,1739685034921,-506.04364379,0.00010958,2]
[353228923,1739685034931,-500.0,0.00010958,2]
[353228924,1739685034940,-520.15792539,0.00010958,2]
[353228925,1739685034949,-500.0,0.00010958,2]
[353228926,1739685034959,-500.0,0.00010958,2]
[353228927,1739685034969,-500.0,0.00010958,2]
[353228928,1739685034979,-500.0,0.00010958,2]
[353228929,1739685034988,-500.0,0.00010958,2]
[353228930,1739685034997,-610.18335157,0.00010958,2]
[353228931,1739685035006,-500.0,0.00010958,2]
[353228932,1739685035016,-505.18738113,0.00010958,2]
[353228933,1739685035026,-514.98141931,0.00010958,2]
[353228934,1739685035036,-512.37018001,0.00010958,2]
[353228935,1739685035046,-162.18056228,0.00010958,2]
[353228936,1739685035056,-500.0,0.00010958,2]
[353228937,1739685035065,-500.0,0.00010958,2]
[353228938,1739685035074,-500.0,0.00010958,2]
[353228939,1739685035084,-500.0,0.00010958,2]
[353228940,1739685035094,-500.0,0.00010958,2]
[353228941,1739685035103,-500.0,0.00010958,2]
[353228942,1739685035112,-500.0,0.00010958,2]
[353228943,1739685035122,-530.37697813,0.00010958,2]
[353228944,1739685035131,-500.0,0.00010958,2]
[353228945,1739685035141,-500.0,0.00010958,2]
[353228946,1739685035150,-504.79059736,0.00010958,2]
[353228947,1739685035160,-500.0,0.00010958,2]
[353228948,1739685035170,-500.0,0.00010958,2]
[353228949,1739685035179,-500.0,0.00010958,2]
[353228950,1739685035188,-500.0,0.00010958,2]
[353228951,1739685035198,-575.6101541,0.00010958,2]
[353228952,1739685035207,-500.0,0.00010958,2]
[353228953,1739685035217,-500.0,0.00010958,2]
[353228954,1739685035226,-500.0,0.00010958,2]
[353228955,1739685035236,-500.0,0.00010958,2]
[353228956,1739685035245,-500.0,0.00010958,2]
[353228957,1739685035255,-1248.0,0.00010958,2]
[353228958,1739685035265,-627.26,0.00010958,2]
[353228959,1739685035274,-500.0,0.00010958,2]
[353228960,1739685035283,-500.0,0.00010958,2]
[353228961,1739685035293,-500.0,0.00010958,2]
[353228962,1739685035433,-500.0,0.00010958,2]
[353228963,1739685035444,-1241.57,0.00010958,2]
[353228964,1739685035454,-786.16,0.00010958,2]
[353228965,1739685035464,-500.0,0.00010958,2]
[353228966,1739685035474,-509.0,0.00010958,2]
[353228967,1739685035484,-628.0,0.00010958,2]
[353228968,1739685035495,-558.42,0.00010958,2]
[353228969,1739685035505,-500.0,0.00010958,2]
[353228970,1739685035515,-500.0,0.00010958,2]
[353228971,1739685035525,-505.09995063,0.00010958,2]
[353228972,1739685035535,-542.19,0.00010958,2]
[353228973,1739685035544,-500.0,0.00010958,2]
[353228974,1739685035553,-500.0,0.00010958,2]
[353228975,1739685035563,-545.38,0.00010958,2]
[353228976,1739685035572,-500.0,0.00010958,2]
[353228977,1739685035581,-500.0,0.00010958,2]
[353228978,1739685035590,-500.0,0.00010958,2]
[353228979,1739685035599,-500.0,0.00010958,2]
[353228980,1739685035609,-500.0,0.00010958,2]
[353228981,1739685035618,-500.0,0.00010958,2]
[353228982,1739685035628,-494.48678128,0.00010958,2]
[353228983,1739685035638,-500.0,0.00010958,2]
[353228984,1739685035647,-1340.94,0.00010958,2]
[353228985,1739685035657,-500.0,0.00010958,2]
[353228986,1739685035667,-610.6580993,0.00010958,2]
[353228987,1739685035677,-500.0,0.00010958,2]
[353228988,1739685035686,-500.0,0.00010958,2]
[353228989,1739685035695,-500.0,0.00010958,2]
[353228990,1739685035706,-589.36,0.00010958,2]
[353228991,1739685035717,-631.7,0.00010958,2]
[353228992,1739685035726,-500.0,0.00010958,2]
[353228993,1739685035735,-500.0,0.00010958,2]
[353228994,1739685035747,-500.0,0.00010958,2]
[353228995,1739685035757,-208.43367625,0.00010958,2]
[353228996,1739685035767,-500.0,0.00010958,2]
[353228997,1739685035776,-500.0,0.00010958,2]
[353228998,1739685035786,-500.0,0.00010958,2]
[353228999,1739685035795,-500.0,0.00010958,2]
[353229000,1739685035804,-500.0,0.00010958,2]
[353229001,1739685035815,-848.55,0.00010958,2]
[353229002,1739685035825,-500.0,0.00010958,2]
[353229003,1739685035833,-363.18121481,0.00010958,2]
[353229004,1739685035843,-236.27490278,0.00010958,2]
[353229005,1739685035853,-810.97,0.00010958,2]
[353229006,1739685035862,-578.51,0.00010958,2]
[353229007,1739685035872,-500.0,0.00010958,2]
[353229008,1739685035881,-500.0,0.00010958,2]
[353229009,1739685035890,-154.69142053,0.00010958,2]
[353229010,1739685035899,-314.45406834,0.00010958,2]
[353229011,1739685035908,-530.87,0.00010958,2]
[353229012,1739685035918,-601.55,0.00010958,2]
[353229013,1739685035928,-345.63528528,0.00010958,2]
[353229014,1739685035938,-500.0,0.00010958,2]
[353229015,1739685035947,-500.0,0.00010958,2]
[353229016,1739685035957,-500.0,0.00010958,2]
[353229017,1739685035966,-500.0,0.00010958,2]
[353229018,1739685035976,-500.0,0.00010958,2]
[353229019,1739685035985,-500.0,0.00010958,2]
[353229020,1739685035995,-791.71,0.00010958,2]
[353229021,1739685036004,-500.0,0.00010958,2]
[353229022,1739685036014,-500.0,0.00010958,2]
[353229023,1739685036023,-500.0,0.00010958,2]
[353229024,1739685036033,-3461.52,0.00010958,2]
[353229025,1739685036042,-296.00023076,0.00010958,2]
[353229026,1739685036051,-500.0,0.00010958,2]
[353229027,1739685036061,-505.17297797,0.00010958,2]
[353229028,1739685036070,-667.75,0.00010958,2]
[353229029,1739685036079,-690.51,0.00010958,2]
[353229030,1739685036088,-679.23,0.00010958,2]
[353229031,1739685036097,-500.0,0.00010958,2]
[353229032,1739685036106,-500.0,0.00010958,2]
[353229033,1739685036116,-3987.33,0.00010958,2]
[353229034,1739685036126,-568.5,0.00010958,2]
[353229035,1739685036135,-517.04,0.00010958,2]
[353229036,1739685036145,-1216.89,0.00010958,2]
[353229037,1739685036155,-500.0,0.00010958,2]
[353229038,1739685036164,-676.24,0.00010958,2]
[353229039,1739685036174,-651.11,0.00010958,2]
[353229040,1739685036184,-674.23,0.00010958,2]
[353229041,1739685036193,-500.0,0.00010958,2]
[353229042,1739685036203,-500.0,0.00010958,2]
[353229043,1739685036213,-500.0,0.00010958,2]
[353229044,1739685036222,-1424.15,0.00010958,2]
[353229045,1739685036231,-1018.84,0.00010958,2]
[353229046,1739685036241,-500.0,0.00010958,2]
[353229047,1739685036250,-500.0,0.00010958,2]
[353229048,1739685036259,-531.48670108,0.00010958,2]
[353229049,1739685036269,-506.48667814,0.00010958,2]
[353229050,1739685036279,-500.0,0.00010958,2]
[353229051,1739685036288,-836.52,0.00010958,2]
[353229052,1739685036298,-166.69805181,0.00010958,2]
[353229053,1739685036308,-1461.51,0.00010958,2]
[353229054,1739685036318,-500.0,0.00010958,2]
[353229055,1739685036327,-500.0,0.00010958,2]
[353229056,1739685036337,-620.57,0.00010958,2]
[353229057,1739685036346,-1377.79,0.00010958,2]
[353229058,1739685036356,-697.87,0.00010958,2]
[353229059,1739685036365,-500.0,0.00010958,2]
[353229060,1739685036375,-500.0,0.00010958,2]
[353229061,1739685036384,-536.54,0.00010958,2]
[353229062,1739685036394,-500.0,0.00010958,2]
[353229063,1739685036404,-508.83182847,0.00010958,2]
[353229064,1739685036415,-500.0,0.00010958,2]
[353229065,1739685036426,-500.0,0.00010958,2]
[353229066,1739685036435,-500.0,0.00010958,2]
[353229067,1739685036445,-1081.54,0.00010958,2]
[353229068,1739685036454,-500.0,0.00010958,2]
[353229069,1739685036464,-1296.12,0.00010958,2]
[353229070,1739685036473,-500.0,0.00010958,2]
[353229071,1739685036483,-500.0,0.00010958,2]
[353229072,1739685036493,-758.57,0.00010958,2]
[353229073,1739685036503,-771.68,0.00010958,2]
[353229074,1739685036512,-500.0,0.00010958,2]
[353229075,1739685036522,-655.56,0.00010958,2]
[353229076,1739685036532,-500.0,0.00010958,2]
[353229077,1739685036541,-500.0,0.00010958,2]
[353229078,1739685036551,-1105.06,0.00010958,2]
[353229079,1739685036560,-500.0,0.00010958,2]
[353229080,1739685036570,-500.0,0.00010958,2]
[353229081,1739685036579,-500.0,0.00010958,2]
[353229082,1739685036588,-505.24066625,0.00010958,2]
[353229083,1739685036598,-500.0,0.00010958,2]
[353229084,1739685036607,-506.13741673,0.00010958,2]
[353229085,1739685036617,-500.0,0.00010958,2]
[353229086,1739685036628,-574.12,0.00010958,2]
[353229087,1739685036637,-1651.7,0.00010958,2]
[353229088,1739685036646,-717.32,0.00010958,2]
[353229089,1739685036655,-500.0,0.00010958,2]
[353229090,1739685036664,-500.0,0.00010958,2]
[353229091,1739685036674,-506.55572252,0.00010958,2]
[353229092,1739685036683,-1098.88,0.00010958,2]
[353229093,1739685036693,-500.0,0.00010958,2]
[353229094,1739685036702,-883.1,0.00010958,2]
[353229095,1739685036712,-500.0,0.00010958,2]
[353229096,1739685036722,-1920.61,0.00010958,2]
[353229097,1739685036732,-500.0,0.00010958,2]
[353229098,1739685036741,-1406.01,0.00010958,2]
[353229099,1739685036750,-591.49,0.00010958,2]
[353229100,1739685036759,-575.02,0.00010958,2]
[353229101,1739685036768,-672.32,0.00010958,2]
[353229102,1739685036777,-500.0,0.00010958,2]
[353229103,1739685036786,-500.0,0.00010958,2]
[353229104,1739685036795,-1117.63,0.00010958,2]
[353229105,1739685036803,-505.50353734,0.00010958,2]
[353229106,1739685036813,-500.0,0.00010958,2]
[353229107,1739685036822,-500.0,0.00010958,2]
[353229108,1739685036832,-506.19706701,0.00010958,2]
[353229109,1739685036841,-500.0,0.00010958,2]
[353229110,1739685036851,-1109.43,0.00010958,2]
[353229111,1739685036860,-1105.88,0.00010958,2]
[353229112,1739685036870,-1341.66,0.00010958,2]
[353229113,1739685036880,-1182.65,0.00010958,2]
[353229114,1739685036890,-1717.17,0.00010958,2]
[353229115,1739685036899,-880.34,0.00010958,2]
[353229116,1739685036909,-500.0,0.00010958,2]
[353229117,1739685036918,-234.88164082,0.00010958,2]
[353229118,1739685036928,-500.0,0.00010958,2]
[353229119,1739685036938,-554.3996474,0.00010958,2]
[353229120,1739685036947,-1984.97,0.00010958,2]
[353229121,1739685036957,-508.75341407,0.00010958,2]
[353229122,1739685036966,-1619.07,0.00010958,2]
[353229123,1739685036976,-511.62954838,0.00010958,2]
[353229124,1739685036986,-500.0,0.00010958,2]
[353229125,1739685036995,-500.0,0.00010958,2]
[353229126,1739685037004,-500.0,0.00010958,2]
[353229127,1739685037014,-1000.0,0.00010958,2]
[353229128,1739685037024,-500.0,0.00010958,2]
[353229129,1739685037034,-500.0,0.00010958,2]
[353229130,1739685037043,-500.0,0.00010958,2]
[353229131,1739685037053,-500.0,0.00010958,2]
[353229132,1739685037063,-500.0,0.00010958,2]
[353229133,1739685037073,-1224.52,0.00010958,2]
[353229134,1739685037082,-856.24,0.00010958,2]
[353229135,1739685037092,-500.0,0.00010958,2]
[353229136,1739685037101,-1154.5,0.00010958,2]
[353229137,1739685037110,-688.4,0.00010958,2]
[353229138,1739685037120,-507.60543003,0.00010958,2]
[353229139,1739685037131,-1365.95,0.00010958,2]
[353229140,1739685037140,-1515.01,0.00010958,2]
[353229141,1739685037150,-1835.8,0.00010958,2]
[353229142,1739685037160,-500.0,0.00010958,2]
[353229143,1739685037169,-669.22,0.00010958,2]
[353229144,1739685037179,-500.0,0.00010958,2]
[353229145,1739685037189,-1401.63,0.00010958,2]
[353229146,1739685037198,-500.0,0.00010958,2]
[353229147,1739685037208,-1044.71,0.00010958,2]
[353229148,1739685037218,-500.0,0.00010958,2]
[353229149,1739685037227,-625.71,0.00010958,2]
[353229150,1739685037237,-4143.2,0.00010958,2]
[353229151,1739685037247,-826.33,0.00010958,2]
[353229152,1739685037257,-500.0,0.00010958,2]
[353229153,1739685037267,-500.0,0.00010958,2]
[353229154,1739685037277,-500.0,0.00010958,2]
[353229155,1739685037287,-1088.2,0.00010958,2]
[353229156,1739685037297,-3471.28,0.00010958,2]
[353229157,1739685037306,-537.68,0.00010958,2]
[353229158,1739685037316,-1672.14,0.00010958,2]
[353229159,1739685037325,-703.68,0.00010958,2]
[353229160,1739685037335,-554.08,0.00010958,2]
[353229161,1739685037344,-500.0,0.00010958,2]
[353229162,1739685037354,-1942.3,0.00010958,2]
[353229163,1739685037364,-3285.77,0.00010958,2]
[353229164,1739685037374,-1087.82,0.00010958,2]
[353229165,1739685037384,-679.78,0.00010958,2]
[353229166,1739685037394,-765.81,0.00010958,2]
[353229167,1739685037405,-500.0,0.00010958,2]
[353229168,1739685037416,-1012.79,0.00010958,2]
[353229169,1739685037426,-735.74,0.00010958,2]
[353229170,1739685037437,-500.0,0.00010958,2]
[353229171,1739685037448,-524.38,0.00010958,2]
[353229172,1739685037458,-500.0,0.00010958,2]
[353229173,1739685037468,-500.0,0.00010958,2]
[353229174,1739685037478,-500.0,0.00010958,2]
[353229175,1739685037488,-623.51,0.00010958,2]
[353229176,1739685037498,-1180.69,0.00010958,2]
[353229177,1739685037508,-1013.18,0.00010958,2]
[353229178,1739685037518,-500.0,0.00010958,2]
[353229179,1739685037528,-1615.23,0.00010958,2]
[353229180,1739685037537,-1420.99,0.00010958,2]
[353229181,1739685037547,-504.07202408,0.00010958,2]
[353229182,1739685037557,-221.10702062,0.00010958,2]
[353229183,1739685037567,-161.92190453,0.00010958,2]
[353229184,1739685037577,-1375.15,0.00010958,2]
[353229185,1739685037587,-512.12,0.00010958,2]
[353229186,1739685037597,-607.65,0.00010958,2]
[353229188,1739685037607,-5280.97,0.00010958,2]
[353229189,1739685037617,-500.0,0.00010958,2]
[353229191,1739685037627,-1564.69,0.00010958,2]
[353229193,1739685037637,-500.0,0.00010958,2]
[353229195,1739685037647,-1099.17,0.00010958,2]
[353229197,1739685037657,-500.0,0.00010958,2]
[353229198,1739685037667,-1132.4,0.00010958,2]
[353229199,1739685037676,-567.54,0.00010958,2]
[353229200,1739685037686,-500.0,0.00010958,2]